fUST/lending_fUST_20260508
["ID","MTS","AMOUNT","RATE_DAILY","PERIOD"]
[421859505,1778237452000,-511.11,0.00012328,2]
[421859501,1778237452000,-500.0,0.00012328,2]
[421859504,1778237452000,-500.0,0.00012328,2]
[421859503,1778237452000,-500.0,0.00012328,2]
[421859502,1778237452000,-821.99,0.00012328,2]
[421859506,1778237452000,-500.0,0.00012328,2]
[421859490,1778237452000,-500.0,0.00012328,2]
[421859493,1778237452000,-500.0,0.00012328,2]
[421859492,1778237452000,-646.32228131,0.00012328,2]
[421859489,1778237452000,-1828.79,0.00012328,2]
[421859491,1778237452000,-1104.17,0.00012328,2]
[421859500,1778237452000,-2013.1,0.00012328,2]
[421859488,1778237452000,-500.0,0.00012328,2]
[421859581,1778237453000,-787.85,0.00012602,2]
[421859573,1778237453000,-500.0,0.00012602,2]
[421859578,1778237453000,-500.0,0.00012602,2]
[421859576,1778237453000,-821.99,0.00012602,2]
[421859570,1778237453000,-500.0,0.00012602,2]
[421859571,1778237453000,-1084.76,0.00012602,2]
[421859572,1778237453000,-9994.16,0.00012602,2]
[421859575,1778237453000,-500.0,0.00012602,2]
[421859563,1778237453000,-500.0,0.00012602,2]
[421859574,1778237453000,-2013.1,0.00012602,2]
[421859569,1778237453000,-845.95,0.00012602,2]
[421859582,1778237453000,-500.0,0.00012602,2]
[421859579,1778237453000,-511.11,0.00012602,2]
[421859577,1778237453000,-500.0,0.00012602,2]
[421859593,1778237453000,-2742.13,0.00012602,2]
[421859591,1778237453000,-500.0,0.00012602,2]
[421859594,1778237453000,-500.0,0.00012602,2]
[421859592,1778237453000,-254.11,0.00012602,2]
[421859589,1778237453000,-500.0,0.00012602,2]
[421859585,1778237453000,-1031.51,0.00012602,2]
[421859586,1778237453000,-1445.84,0.00012602,2]
[421859558,1778237453000,-500.0,0.00012602,2]
[421859580,1778237453000,-500.0,0.00012602,2]
[421859555,1778237453000,-500.0,0.00012602,2]
[421859542,1778237453000,-500.0,0.00012602,2]
[421859559,1778237453000,-500.0,0.00012602,2]
[421859584,1778237453000,-1327.97,0.00012602,2]
[421859540,1778237453000,-500.0,0.00012602,2]
[421859541,1778237453000,-500.0,0.00012602,2]
[421859543,1778237453000,-500.0,0.00012602,2]
[421859553,1778237453000,-500.0,0.00012602,2]
[421859547,1778237453000,-500.0,0.00012602,2]
[421859545,1778237453000,-500.0,0.00012602,2]
[421859551,1778237453000,-720.28,0.00012602,2]
[421859546,1778237453000,-500.0,0.00012602,2]
[421859548,1778237453000,-500.0,0.00012602,2]
[421859552,1778237453000,-500.0,0.00012602,2]
[421859566,1778237453000,-1104.17,0.00012602,2]
[421859544,1778237453000,-842.37,0.00012602,2]
[421859554,1778237453000,-868.9024,0.00012602,2]
[421859549,1778237453000,-500.0,0.00012602,2]
[421859565,1778237453000,-500.0,0.00012602,2]
[421859564,1778237453000,-1828.79,0.00012602,2]
[421859556,1778237453000,-776.62,0.00012602,2]
[421859567,1778237453000,-500.0,0.00012602,2]
[421859568,1778237453000,-500.0,0.00012602,2]
[421859562,1778237453000,-585.7,0.00012602,2]
[421859561,1778237453000,-1339.58,0.00012602,2]
[421859560,1778237453000,-500.0,0.00012602,2]
[421859557,1778237453000,-500.0,0.00012602,2]
[421859550,1778237453000,-747.72,0.00012602,2]
[421859590,1778237453000,-740.75,0.00012602,2]
[421859583,1778237453000,-559.71,0.00012602,2]
[421859587,1778237453000,-615.42,0.00012602,2]
[421859623,1778237453000,-500.0,0.00012876,2]
[421859627,1778237453000,-500.0,0.00012876,2]
[421859633,1778237453000,-500.0,0.00012876,2]
[421859625,1778237453000,-500.0,0.00012876,2]
[421859588,1778237453000,-500.0,0.00012602,2]
[421859626,1778237453000,-500.0,0.00012876,2]
[421859628,1778237453000,-500.0,0.00012876,2]
[421859632,1778237453000,-1828.79,0.00012876,2]
[421859621,1778237453000,-500.0,0.00012876,2]
[421859631,1778237453000,-500.0,0.00012876,2]
[421859630,1778237453000,-585.7,0.00012876,2]
[421859635,1778237453000,-500.0,0.00012876,2]
[421859638,1778237453000,-348.0,0.0001178,2]
[421859637,1778237453000,-461.03851685,0.00012876,2]
[421859636,1778237453000,-500.0,0.00012876,2]
[421859634,1778237453000,-1104.17,0.00012876,2]
[421859640,1778237453000,-796.52,0.00012054,2]
[421859643,1778237453000,-500.0,0.00012876,2]
[421859641,1778237453000,-796.52,0.00012328,2]
[421859644,1778237453000,-1084.76,0.00012876,2]
[421859639,1778237453000,-448.52,0.0001178,2]
[421859645,1778237453000,-1601.53491487,0.00012876,2]
[421859642,1778237453000,-384.91148315,0.00012876,2]
[421859624,1778237453000,-776.62,0.00012876,2]
[421859622,1778237453000,-868.9024,0.00012876,2]
[421859629,1778237453000,-1339.58,0.00012876,2]
[421859616,1778237453000,-500.0,0.00012876,2]
[421859595,1778237453000,-500.0,0.00012602,2]
[421859604,1778237453000,-500.0,0.00012876,2]
[421859598,1778237453000,-500.0,0.00012602,2]
[421859597,1778237453000,-652.37,0.00012602,2]
[421859605,1778237453000,-500.0,0.00012876,2]
[421859620,1778237453000,-500.0,0.00012876,2]
[421859599,1778237453000,-567.788,0.000127,2]
[421859596,1778237453000,-1742.71,0.00012602,2]
[421859601,1778237453000,-160.0,0.00012805,3]
[421859603,1778237453000,-500.0,0.00012876,2]
[421859602,1778237453000,-500.0,0.00012876,2]
[421859607,1778237453000,-500.0,0.00012876,2]
[421859600,1778237453000,-187.497,0.000127,2]
[421859617,1778237453000,-500.0,0.00012876,2]
[421859606,1778237453000,-618.59651867,0.00012876,2]
[421859619,1778237453000,-720.28,0.00012876,2]
[421859609,1778237453000,-500.0,0.00012876,2]
[421859608,1778237453000,-336.83,0.00012876,2]
[421859614,1778237453000,-500.0,0.00012876,2]
[421859610,1778237453000,-500.0,0.00012876,2]
[421859612,1778237453000,-842.37,0.00012876,2]
[421859611,1778237453000,-500.0,0.00012876,2]
[421859613,1778237453000,-500.0,0.00012876,2]
[421859615,1778237453000,-500.0,0.00012876,2]
[421859618,1778237453000,-747.72,0.00012876,2]
[421859651,1778237914000,311.93832974,8.161e-05,2]
[421859652,1778238035000,-3501.24224805,0.00010012,2]
[421859653,1778238052000,-5000.0,0.00010159,2]
[421859654,1778238069000,-354.21304811,0.00010164,2]
[421859655,1778238085000,-1103.11298001,0.00010858,2]
[421859656,1778238102000,-500.0,0.00010958,2]
[421859657,1778238119000,-561.58,0.00010958,2]
[421859658,1778238136000,-500.0,0.00010958,2]
[421859661,1778238153000,-882.9944,0.00010958,2]
[421859668,1778238312000,197.95193199,7.6e-05,2]
[421859669,1778238312000,1000.0,7.6e-05,2]
[421859671,1778238313000,693.21804178,7.6e-05,2]
[421859670,1778238313000,1000.0,7.6e-05,2]
[421859723,1778238632000,-223.25278783,9.51e-05,2]
[421859727,1778238632000,-662.98867399,9.51e-05,2]
[421859725,1778238632000,-474.03770406,9.51e-05,2]
[421859721,1778238632000,-329.83074482,9.415e-05,2]
[421859817,1778238641000,-15.30768093,9.51e-05,2]
[421859819,1778238641000,-2128.74048089,9.606e-05,2]
[421859821,1778238641000,-6927.88546197,0.0001,2]
[421859818,1778238641000,-347.12878715,9.558e-05,2]
[421859823,1778238641000,-1044.39639832,0.0001,2]
[421859825,1778238641000,-500.0,0.00010958,2]
[421859828,1778238641000,-500.0,0.00010958,2]
[421859826,1778238641000,-497.4,0.00010958,2]
[421859830,1778238641000,-500.0,0.00010958,2]
[421859827,1778238641000,-500.0,0.00010958,2]
[421859834,1778238641000,-500.0,0.00010958,2]
[421859820,1778238641000,-495.6726723,9.606e-05,2]
[421859833,1778238641000,-500.0,0.00010958,2]
[421859835,1778238641000,-500.0,0.00010958,2]
[421859829,1778238641000,-500.0,0.00010958,2]
[421859832,1778238641000,-500.0,0.00010958,2]
[421859836,1778238641000,-500.0,0.00010958,2]
[421859837,1778238641000,-500.0,0.00010958,2]
[421859838,1778238641000,-482.95432759,0.00010958,2]
[421859839,1778238641000,-17.04567241,0.00010958,2]
[421859843,1778238641000,-384.95068495,0.00010958,2]
[421859840,1778238641000,-882.9944,0.00010958,2]
[421859842,1778238641000,-682.46,0.00010958,2]
[421859841,1778238641000,-500.0,0.00010958,2]
[421859831,1778238641000,-500.0,0.00010958,2]
[421859848,1778238642000,-500.0,0.00010958,2]
[421859846,1778238642000,-115.04931505,0.00010958,2]
[421859851,1778238642000,-500.0,0.00010958,2]
[421859853,1778238642000,-355.92315861,0.00010958,2]
[421859878,1778238646000,-537.12684139,0.00010958,2]
[421859889,1778238646000,-500.0,0.00010958,2]
[421859879,1778238646000,-500.0,0.00010958,2]
[421859881,1778238646000,-500.0,0.00010958,2]
[421859880,1778238646000,-500.0,0.00010958,2]
[421859883,1778238646000,-500.0,0.00010958,2]
[421859882,1778238646000,-500.0,0.00010958,2]
[421859887,1778238646000,-500.0,0.00010958,2]
[421859885,1778238646000,-393.7,0.00010958,2]
[421859884,1778238646000,-500.0,0.00010958,2]
[421859886,1778238646000,-6784.23,0.00010958,2]
[421859888,1778238646000,-1219.2,0.00010958,2]
[421859890,1778238646000,-1425.94,0.00010958,2]
[421859891,1778238646000,-736.11,0.00010958,2]
[421859904,1778238646000,-427.72054268,0.00010958,2]
[421859894,1778238646000,-500.0,0.00010958,2]
[421859906,1778238646000,-500.0,0.00010958,2]
[421859905,1778238646000,-500.0,0.00010958,2]
[421859903,1778238646000,-154.51945732,0.00010958,2]
[421859902,1778238646000,-500.0,0.00010958,2]
[421859893,1778238646000,-500.0,0.00010958,2]
[421859899,1778238646000,-558.06,0.00010958,2]
[421859901,1778238646000,-500.0,0.00010958,2]
[421859896,1778238646000,-462.01252814,0.00010958,2]
[421859895,1778238646000,-500.0,0.00010958,2]
[421859898,1778238646000,-768.37,0.00010958,2]
[421859897,1778238646000,-117.99747186,0.00010958,2]
[421859892,1778238646000,-500.0,0.00010958,2]
[421859900,1778238646000,-940.64,0.00010958,2]
[421859907,1778238647000,-500.0,0.00010958,2]
[421859908,1778238647000,-1942.35,0.00010958,2]
[421859911,1778238647000,-500.0,0.00010958,2]
[421859912,1778238647000,-730.65,0.00010958,2]
[421859913,1778238647000,-2.9336822,0.00010958,2]
[421859909,1778238647000,-517.90268535,0.00010958,2]
[421859910,1778238647000,-500.0,0.00010958,2]
[421859916,1778238942000,152.0,0.00010969,30]
[421860188,1778239838000,-500.0,0.00010958,2]
[421860177,1778239838000,-500.0,0.00010958,2]
[421860174,1778239838000,-500.0,0.00010958,2]
[421860175,1778239838000,-561.58,0.00010958,2]
[421860164,1778239838000,-152.0,0.00010424,7]
[421860168,1778239838000,-500.0,0.00010684,2]
[421860170,1778239838000,-500.0,0.00010958,2]
[421860172,1778239838000,-296.94,0.00010958,2]
[421860171,1778239838000,-500.0,0.00010958,2]
[421860167,1778239838000,-500.0,0.00010684,2]
[421860187,1778239838000,-500.0,0.00010958,2]
[421860166,1778239838000,-159.79,0.00010633,2]
[421860165,1778239838000,-300.0,0.00010632,2]
[421860163,1778239838000,-152.0,0.00010424,7]
[421860161,1778239838000,-1200.0,0.00010109,2]
[421860160,1778239838000,-368.60075984,9.962e-05,2]
[421860158,1778239838000,-5000.0,9.618e-05,2]
[421860156,1778239838000,-1753.6830432,9.522e-05,2]
[421860162,1778239838000,-1000.8540663,0.0001011,2]
[421860173,1778239838000,-500.0,0.00010958,2]
[421860176,1778239838000,-500.0,0.00010958,2]
[421860169,1778239838000,-630.55074266,0.00010684,2]
[421860178,1778239838000,-500.0,0.00010958,2]
[421860199,1778239838000,-1168.4,0.00010958,2]
[421860194,1778239838000,-500.0,0.00010958,2]
[421860179,1778239838000,-500.0,0.00010958,2]
[421860191,1778239838000,-500.0,0.00010958,2]
[421860201,1778239838000,-705.44,0.00010958,2]
[421860200,1778239838000,-500.0,0.00010958,2]
[421860195,1778239838000,-500.0,0.00010958,2]
[421860196,1778239838000,-232.8,0.00010958,2]
[421860198,1778239838000,-500.0,0.00010958,2]
[421860192,1778239838000,-500.0,0.00010958,2]
[421860197,1778239838000,-855.84,0.00010958,2]
[421860190,1778239838000,-279.66,0.00010958,2]
[421860193,1778239838000,-517.74,0.00010958,2]
[421860185,1778239838000,-500.0,0.00010958,2]
[421860181,1778239838000,-500.0,0.00010958,2]
[421860183,1778239838000,-500.0,0.00010958,2]
[421860184,1778239838000,-500.0,0.00010958,2]
[421860189,1778239838000,-882.9944,0.00010958,2]
[421860182,1778239838000,-500.0,0.00010958,2]
[421860186,1778239838000,-452.49348133,0.00010958,2]
[421860180,1778239838000,-500.0,0.00010958,2]
[421860221,1778239839000,-517.90268535,0.00010958,2]
[421860212,1778239839000,-500.0,0.00010958,2]
[421860216,1778239839000,-500.0,0.00010958,2]
[421860225,1778239839000,-524.7,0.00010958,2]
[421860206,1778239839000,-3537.65257693,0.00010958,2]
[421860207,1778239839000,-555.84,0.00010958,2]
[421860205,1778239839000,-3258.86742307,0.00010958,2]
[421860211,1778239839000,-534.8,0.00010958,2]
[421860208,1778239839000,-1366.53,0.00010958,2]
[421860210,1778239839000,-500.0,0.00010958,2]
[421860204,1778239839000,-736.35,0.00010958,2]
[421860202,1778239839000,-500.0,0.00010958,2]
[421860203,1778239839000,-500.0,0.00010958,2]
[421860213,1778239839000,-500.0,0.00010958,2]
[421860218,1778239839000,-1089.09,0.00010958,2]
[421860209,1778239839000,-500.0,0.00010958,2]
[421860226,1778239839000,-1942.35,0.00010958,2]
[421860215,1778239839000,-500.0,0.00010958,2]
[421860220,1778239839000,-500.0,0.00010958,2]
[421860222,1778239839000,-500.0,0.00010958,2]
[421860235,1778239839000,-4830.19097647,0.00011032,2]
[421860236,1778239839000,-1437.21047514,0.00011032,2]
[421860233,1778239839000,-204.55,0.00010993,2]
[421860234,1778239839000,-384.9201,0.00011031,2]
[421860229,1778239839000,-500.0,0.00010958,2]
[421860232,1778239839000,-500.0,0.00010958,2]
[421860230,1778239839000,-500.0,0.00010958,2]
[421860231,1778239839000,-500.0,0.00010958,2]
[421860228,1778239839000,-500.0,0.00010958,2]
[421860224,1778239839000,-777.54,0.00010958,2]
[421860219,1778239839000,-500.0,0.00010958,2]
[421860217,1778239839000,-901.45,0.00010958,2]
[421860214,1778239839000,-575.81,0.00010958,2]
[421860223,1778239839000,-500.0,0.00010958,2]
[421860227,1778239839000,-1234.42,0.00010958,2]
[421860254,1778239841000,-339.53196822,0.00011032,2]
[421860255,1778239841000,-1604.14,0.00011032,2]
[421860257,1778239841000,-240.16535243,0.0001112,2]
[421860256,1778239841000,-2696.26108563,0.00011032,2]
[421860253,1778239841000,-5000.0,9.427e-05,2]
[421860269,1778239844000,-500.0,0.00011232,2]
[421860268,1778239844000,-500.0,0.00011232,2]
[421860266,1778239844000,-759.83464757,0.0001112,2]
[421860270,1778239844000,-84.46535243,0.00011232,2]
[421860267,1778239844000,-155.0,0.00011231,2]
[421860274,1778239846000,-415.53464757,0.00011232,2]
[421860281,1778239846000,-500.0,0.00011232,2]
[421860279,1778239846000,-128.81439149,0.00011232,2]
[421860276,1778239846000,-561.58,0.00011232,2]
[421860278,1778239846000,-500.0,0.00011232,2]
[421860282,1778239846000,-500.0,0.00011232,2]
[421860280,1778239846000,-371.18560851,0.00011232,2]
[421860283,1778239846000,-500.0,0.00011232,2]
[421860289,1778239846000,-500.0,0.00011232,2]
[421860277,1778239846000,-360.16,0.00011232,2]
[421860284,1778239846000,-500.0,0.00011232,2]
[421860286,1778239846000,-596.42,0.00011232,2]
[421860288,1778239846000,-500.0,0.00011232,2]
[421860285,1778239846000,-500.0,0.00011232,2]
[421860287,1778239846000,-500.0,0.00011232,2]
[421860291,1778239846000,-500.0,0.00011232,2]
[421860290,1778239846000,-882.9944,0.00011232,2]
[421860275,1778239846000,-500.0,0.00011232,2]
[421860301,1778239847000,-500.0,0.00011232,2]
[421860298,1778239847000,-500.0,0.00011232,2]
[421860300,1778239847000,-500.0,0.00011232,2]
[421860299,1778239847000,-705.44,0.00011232,2]
[421860297,1778239847000,-1168.4,0.00011232,2]
[421860295,1778239847000,-855.84,0.00011232,2]
[421860294,1778239847000,-500.0,0.00011232,2]
[421860292,1778239847000,-517.74,0.00011232,2]
[421860296,1778239847000,-500.0,0.00011232,2]
[421860305,1778239847000,-1366.53,0.00011232,2]
[421860293,1778239847000,-500.0,0.00011232,2]
[421860302,1778239847000,-736.35,0.00011232,2]
[421860303,1778239847000,-6796.52,0.00011232,2]
[421860312,1778239847000,-500.0,0.00011232,2]
[421860304,1778239847000,-555.84,0.00011232,2]
[421860317,1778239847000,-500.0,0.00011232,2]
[421860316,1778239847000,-839.71936092,0.00011232,2]
[421860311,1778239847000,-575.81,0.00011232,2]
[421860314,1778239847000,-901.45,0.00011232,2]
[421860307,1778239847000,-500.0,0.00011232,2]
[421860309,1778239847000,-500.0,0.00011232,2]
[421860310,1778239847000,-500.0,0.00011232,2]
[421860308,1778239847000,-534.8,0.00011232,2]
[421860306,1778239847000,-500.0,0.00011232,2]
[421860315,1778239847000,-249.37063908,0.00011232,2]
[421860318,1778239847000,-117.38166221,0.00011232,2]
[421860313,1778239847000,-500.0,0.00011232,2]
[421860322,1778240038000,7500.0,0.00019178,120]
[421860397,1778241038000,-300.0,9.899e-05,2]
[421860394,1778241038000,-2524.78452951,9.606e-05,2]
[421860395,1778241038000,-300.0,9.899e-05,2]
[421860396,1778241038000,-300.0,9.899e-05,2]
[421860398,1778241038000,-300.0,9.899e-05,2]
[421860400,1778241038000,-366.94161588,9.906e-05,2]
[421860402,1778241038000,-156.07827513,0.00010789,2]
[421860403,1778241038000,-8100.4643217,0.00010852,2]
[421860404,1778241038000,-3238.28883582,0.00010852,2]
[421860401,1778241038000,-219.86656464,0.00010506,2]
[421860399,1778241038000,-18451.0,9.9e-05,2]
[421860406,1778241039000,-45625.24684248,0.00010852,2]
[421860405,1778241039000,-2032.3463984,9.51e-05,2]
[421860407,1778241039000,-500.0,0.00010857,2]
[421860413,1778241039000,-572.72929461,0.00010857,2]
[421860414,1778241039000,-500.0,0.00010857,2]
[421860409,1778241039000,-500.0,0.00010857,2]
[421860410,1778241039000,-500.0,0.00010857,2]
[421860408,1778241039000,-500.0,0.00010857,2]
[421860412,1778241039000,-500.0,0.00010857,2]
[421860415,1778241039000,-500.0,0.00010857,2]
[421860411,1778241039000,-500.0,0.00010857,2]
[421860423,1778241039000,-500.0,0.00010857,2]
[421860426,1778241039000,-21539.43848328,0.00010858,2]
[421860425,1778241039000,-542.59489295,0.00010857,2]
[421860424,1778241039000,-385.19626736,0.00010857,2]
[421860417,1778241039000,-500.0,0.00010857,2]
[421860421,1778241039000,-500.0,0.00010857,2]
[421860427,1778241039000,-6895.17028341,0.00010858,2]
[421860419,1778241039000,-500.0,0.00010857,2]
[421860428,1778241039000,-17226.94880536,0.00010858,2]
[421860418,1778241039000,-500.0,0.00010857,2]
[421860420,1778241039000,-500.0,0.00010857,2]
[421860416,1778241039000,-500.0,0.00010857,2]
[421860422,1778241039000,-500.0,0.00010857,2]
[421860446,1778241041000,-544.22752634,0.00010858,2]
[421860450,1778241043000,5000.0,0.00019178,120]
[421860456,1778241044000,-2287.82511158,0.00010858,2]
[421860455,1778241044000,-2734.30346923,0.00010858,2]
[421860464,1778241047000,-7808.74716448,0.00010858,2]
[421860465,1778241047000,-785.90876817,0.00010858,2]
[421860466,1778241047000,-896.75205161,0.00010858,2]
[421860467,1778241047000,-14358.69197532,0.00010858,2]
[421860469,1778241047000,-55781.76913549,0.00010858,2]
[421860468,1778241047000,-2452.93688462,0.00010858,2]
[421860470,1778241074000,10000.0,0.00019178,120]
[421860471,1778241088000,5678.15596743,0.00019178,120]
[421860481,1778241634000,-2727.27232511,8.832e-05,2]
[421860487,1778242027000,2748.48335308,8.16e-05,2]
[421860488,1778242035000,1424.51298498,8.16e-05,2]
[421860493,1778242192000,997.74284914,8.16e-05,2]
[421860605,1778242238000,-485.56,0.00010958,2]
[421860590,1778242238000,-500.0,0.00010958,2]
[421860588,1778242238000,-500.0,0.00010958,2]
[421860591,1778242238000,-633.19,0.00010958,2]
[421860586,1778242238000,-500.0,0.00010958,2]
[421860585,1778242238000,-500.0,0.00010958,2]
[421860587,1778242238000,-500.0,0.00010958,2]
[421860584,1778242238000,-500.0,0.00010958,2]
[421860593,1778242238000,-500.0,0.00010958,2]
[421860589,1778242238000,-500.0,0.00010958,2]
[421860594,1778242238000,-500.0,0.00010958,2]
[421860596,1778242238000,-500.0,0.00010958,2]
[421860595,1778242238000,-784.52,0.00010958,2]
[421860597,1778242238000,-500.0,0.00010958,2]
[421860583,1778242238000,-500.0,0.00010958,2]
[421860598,1778242238000,-500.0,0.00010958,2]
[421860600,1778242238000,-6457.91,0.00010958,2]
[421860601,1778242238000,-667.49,0.00010958,2]
[421860602,1778242238000,-500.0,0.00010958,2]
[421860599,1778242238000,-1111.02,0.00010958,2]
[421860606,1778242238000,-698.91,0.00010958,2]
[421860603,1778242238000,-1297.48,0.00010958,2]
[421860592,1778242238000,-300.08,0.00010958,2]
[421860580,1778242238000,-500.0,0.00010958,2]
[421860578,1778242238000,-500.0,0.00010958,2]
[421860579,1778242238000,-514.79,0.00010958,2]
[421860558,1778242238000,-163.05792868,9.021e-05,2]
[421860556,1778242238000,-377.171473,8.508e-05,2]
[421860557,1778242238000,-163.05792867,8.751e-05,2]
[421860559,1778242238000,-163.05792867,9.3e-05,2]
[421860562,1778242238000,-300.0,9.981e-05,4]
[421860565,1778242238000,-1616.24588808,0.0001,2]
[421860561,1778242238000,-151.0,9.743e-05,2]
[421860563,1778242238000,-1673.30474098,0.0001,2]
[421860560,1778242238000,-151.0,9.743e-05,2]
[421860564,1778242238000,-464.99627141,0.0001,2]
[421860567,1778242238000,-300.0,0.00010507,2]
[421860566,1778242238000,-456.3497628,0.00010456,2]
[421860568,1778242238000,-445.06233814,0.00010508,2]
[421860570,1778242238000,-151.0,0.00010565,2]
[421860569,1778242238000,-231.7173752,0.00010565,2]
[421860571,1778242238000,-456.3275978,0.00010565,2]
[421860576,1778242238000,-2457.92213138,0.00010815,2]
[421860577,1778242238000,-882.9944,0.00010958,2]
[421860574,1778242238000,-38199.62464235,0.00010758,2]
[421860572,1778242238000,-526.6378145,0.00010565,2]
[421860582,1778242238000,-500.0,0.00010958,2]
[421860581,1778242238000,-257.26,0.00010958,2]
[421860607,1778242238000,-318.72,0.00010958,2]
[421860610,1778242238000,-500.0,0.00010958,2]
[421860608,1778242238000,-530.35,0.00010958,2]
[421860635,1778242238000,-160.76667359,0.000112,3]
[421860634,1778242238000,-174.33936918,0.00011132,2]
[421860638,1778242238000,-500.0,0.00011232,2]
[421860642,1778242238000,-551.14,0.00011232,2]
[421860646,1778242238000,-500.0,0.00011232,2]
[421860649,1778242238000,-316.2311118,0.00011232,2]
[421860641,1778242238000,-500.0,0.00011232,2]
[421860637,1778242238000,-526.29117079,0.00011232,2]
[421860640,1778242238000,-500.0,0.00011232,2]
[421860643,1778242238000,-500.0,0.00011232,2]
[421860636,1778242238000,-882.9944,0.00011232,2]
[421860645,1778242238000,-500.0,0.00011232,2]
[421860639,1778242238000,-514.79,0.00011232,2]
[421860647,1778242238000,-500.0,0.00011232,2]
[421860652,1778242238000,-500.0,0.00011232,2]
[421860651,1778242238000,-500.0,0.00011232,2]
[421860650,1778242238000,-633.19,0.00011232,2]
[421860653,1778242238000,-784.52,0.00011232,2]
[421860654,1778242238000,-500.0,0.00011232,2]
[421860655,1778242238000,-500.0,0.00011232,2]
[421860656,1778242238000,-500.0,0.00011232,2]
[421860604,1778242238000,-500.0,0.00010958,2]
[421860648,1778242238000,-500.0,0.00011232,2]
[421860633,1778242238000,-500.0,0.00010958,2]
[421860644,1778242238000,-500.0,0.00011232,2]
[421860631,1778242238000,-500.0,0.00010958,2]
[421860630,1778242238000,-500.0,0.00010958,2]
[421860609,1778242238000,-500.0,0.00010958,2]
[421860611,1778242238000,-500.0,0.00010958,2]
[421860615,1778242238000,-500.0,0.00010958,2]
[421860614,1778242238000,-548.66,0.00010958,2]
[421860613,1778242238000,-500.0,0.00010958,2]
[421860620,1778242238000,-500.0,0.00010958,2]
[421860612,1778242238000,-874.2,0.00010958,2]
[421860617,1778242238000,-500.0,0.00010958,2]
[421860619,1778242238000,-500.0,0.00010958,2]
[421860621,1778242238000,-1908.09,0.00010958,2]
[421860625,1778242238000,-1239.33,0.00010958,2]
[421860618,1778242238000,-500.0,0.00010958,2]
[421860622,1778242238000,-782.59,0.00010958,2]
[421860624,1778242238000,-500.0,0.00010958,2]
[421860623,1778242238000,-1024.44,0.00010958,2]
[421860626,1778242238000,-500.0,0.00010958,2]
[421860628,1778242238000,-527.84,0.00010958,2]
[421860632,1778242238000,-500.0,0.00010958,2]
[421860627,1778242238000,-500.0,0.00010958,2]
[421860629,1778242238000,-500.0,0.00010958,2]
[421860616,1778242238000,-500.0,0.00010958,2]
[421860693,1778242239000,-161.58879827,0.00011435,2]
[421860692,1778242239000,-160.0,0.00011435,2]
[421860695,1778242239000,-160.0,0.00011435,2]
[421860699,1778242239000,-500.0,0.00011506,2]
[421860698,1778242239000,-514.79,0.00011506,2]
[421860696,1778242239000,-882.9944,0.00011506,2]
[421860697,1778242239000,-600.2,0.00011506,2]
[421860691,1778242239000,-151.0,0.00011387,2]
[421860690,1778242239000,-185.0,0.00011348,2]
[421860689,1778242239000,-442.0,0.00011348,2]
[421860700,1778242239000,-500.0,0.00011506,2]
[421860694,1778242239000,-160.0,0.00011435,2]
[421860709,1778242239000,-500.0,0.00011506,2]